fUST/lending_fUST_20250110
["ID","MTS","AMOUNT","RATE_DAILY","PERIOD"]
[348393013,1736501446668,-504.49256233,0.00021917,3]
[348393014,1736501446677,-501.44782918,0.00021917,3]
[348393015,1736501446688,-500.0,0.00021917,3]
[348393016,1736501446699,-500.0,0.00021917,3]
[348393017,1736501446709,-500.0,0.00021917,3]
[348393018,1736501446718,-500.0,0.00021917,3]
[348393019,1736501446728,-500.0,0.00021917,3]
[348393020,1736501446738,-500.0,0.00021917,3]
[348393021,1736501446748,-500.0,0.00021917,3]
[348393022,1736501446757,-502.64894961,0.00021917,3]
[348393023,1736501446767,-153.190542,0.00021917,2]
[348393024,1736501446777,-205.86355415,0.00021917,3]
[348393025,1736501446790,-500.0,0.00021917,3]
[348393026,1736501446800,-500.0,0.00021917,3]
[348393027,1736501446810,-151.0,0.00021917,2]
[348393028,1736501446820,-151.0,0.00021917,2]
[348393029,1736501446830,-152.121158,0.00021917,2]
[348393030,1736501446840,-500.0,0.00021917,3]
[348393031,1736501446850,-500.0,0.00021917,3]
[348393032,1736501446860,-500.36286354,0.00021917,3]
[348393033,1736501446869,-501.08724614,0.00021917,3]
[348393034,1736501446879,-500.0,0.00021917,3]
[348393035,1736501446889,-500.90940792,0.00021917,3]
[348393036,1736501446898,-500.34387434,0.00021917,3]
[348393037,1736501446908,-160.55046445,0.00021917,3]
[348393038,1736501446917,-500.80179744,0.00021917,3]
[348393039,1736501446926,-500.0,0.00021917,3]
[348393040,1736501446938,-500.0,0.00021917,3]
[348393041,1736501446948,-500.0,0.00021917,3]
[348393042,1736501446957,-502.98565579,0.00021917,3]
[348393043,1736501446966,-500.0,0.00021917,3]
[348393044,1736501446976,-500.0,0.00021917,3]
[348393045,1736501446985,-500.0,0.00021917,3]
[348393046,1736501446995,-500.0,0.00021917,3]
[348393047,1736501447004,-500.0,0.00021917,3]
[348393048,1736501447014,-501.7258179,0.00021917,3]
[348393049,1736501447023,-500.0,0.00021917,3]
[348393050,1736501447032,-603.58901527,0.00021917,3]
[348393051,1736501447042,-501.00515302,0.00021917,3]
[348393052,1736501447052,-500.0,0.00021917,3]
[348393053,1736501447061,-500.0,0.00021917,3]
[348393054,1736501447071,-502.22877388,0.00021917,3]
[348393055,1736501447081,-500.0,0.00021917,3]
[348393056,1736501447090,-500.0,0.00021917,3]
[348393057,1736501447100,-500.0,0.00021917,3]
[348393058,1736501447110,-500.0,0.00021917,3]
[348393059,1736501447119,-500.0,0.00021917,3]
[348393060,1736501447130,-572.84,0.00021917,3]
[348393061,1736501447140,-151.0,0.00021917,2]
[348393062,1736501447151,-151.0,0.00021917,2]
[348393063,1736501447162,-500.0,0.00021917,3]
[348393064,1736501447172,-151.0,0.00021917,2]
[348393065,1736501447183,-151.0,0.00021917,2]
[348393066,1736501447194,-151.0,0.00021917,2]
[348393067,1736501447204,-151.0,0.00021917,2]
[348393068,1736501447214,-151.0,0.00021917,2]
[348393069,1736501447224,-501.3628999,0.00021917,3]
[348393070,1736501447234,-151.0,0.00021917,2]
[348393071,1736501447243,-165.458668,0.00021917,2]
[348393072,1736501447253,-500.0,0.00021917,3]
[348393073,1736501447263,-500.0,0.00021917,3]
[348393074,1736501447272,-500.98478342,0.00021917,3]
[348393075,1736501447282,-500.0,0.00021917,3]
[348393076,1736501447292,-350.128922,0.00021917,2]
[348393077,1736501447302,-350.128922,0.00021917,2]
[348393078,1736501447311,-350.128922,0.00021917,2]
[348393079,1736501447321,-500.0,0.00021917,3]
[348393080,1736501447330,-350.128922,0.00021917,2]
[348393081,1736501447339,-151.0,0.00021917,2]
[348393082,1736501447349,-350.128922,0.00021917,2]
[348393083,1736501447358,-151.0,0.00021917,2]
[348393084,1736501447368,-350.128922,0.00021917,2]
[348393085,1736501447377,-151.0,0.00021917,2]
[348393086,1736501447387,-500.0,0.00021917,3]
[348393087,1736501447397,-350.128922,0.00021917,2]
[348393088,1736501447407,-151.0,0.00021917,2]
[348393089,1736501447416,-350.128922,0.00021917,2]
[348393090,1736501447426,-151.0,0.00021917,2]
[348393091,1736501447436,-350.128922,0.00021917,2]
[348393092,1736501447446,-500.0,0.00021917,3]
[348393093,1736501447456,-165.751684,0.00021917,2]
[348393094,1736501447466,-350.128922,0.00021917,2]
[348393095,1736501447476,-500.54197653,0.00021917,3]
[348393096,1736501447487,-350.128922,0.00021917,2]
[348393097,1736501447497,-350.128922,0.00021917,2]
[348393098,1736501447507,-350.128922,0.00021917,2]
[348393099,1736501447518,-350.128922,0.00021917,2]
[348393100,1736501447530,-500.87487581,0.00021917,3]
[348393101,1736501447540,-350.128922,0.00021917,2]
[348393102,1736501447550,-350.128922,0.00021917,2]
[348393103,1736501447561,-350.128922,0.00021917,2]
[348393104,1736501447571,-350.128922,0.00021917,2]
[348393105,1736501447581,-500.0,0.00021917,3]
[348393106,1736501447591,-350.128922,0.00021917,2]
[348393107,1736501447600,-350.128926,0.00021917,2]
[348393108,1736501447610,-500.0,0.00021917,3]
[348393109,1736501447620,-500.0,0.00021917,3]
[348393110,1736501447629,-573.50727515,0.00021917,3]
[348393111,1736501447639,-500.0,0.00021917,3]
[348393112,1736501447648,-500.0,0.00021917,3]
[348393113,1736501447658,-500.0,0.00021917,3]
[348393114,1736501447668,-501.90080356,0.00021917,3]
[348393115,1736501447678,-501.80487281,0.00021917,3]
[348393116,1736501447689,-503.65002462,0.00021917,3]
[348393117,1736501447699,-625.9517562,0.00021917,3]
[348393118,1736501447708,-501.70926011,0.00021917,3]
[348393119,1736501447718,-500.0,0.00021917,3]
[348393120,1736501447727,-501.31673727,0.00021917,3]
[348393121,1736501447737,-151.0,0.00021917,2]
[348393122,1736501447747,-151.0,0.00021917,2]
[348393123,1736501447757,-501.91946134,0.00021917,3]
[348393124,1736501447767,-151.0,0.00021917,2]
[348393125,1736501447777,-500.0,0.00021917,3]
[348393126,1736501447791,-151.0,0.00021917,2]
[348393127,1736501447800,-151.0,0.00021917,2]
[348393128,1736501447810,-231.077269,0.00021917,2]
[348393129,1736501447819,-502.55086988,0.00021917,3]
[348393130,1736501447830,-588.66698161,0.00021917,3]
[348393131,1736501447840,-500.0,0.00021917,3]
[348393132,1736501447849,-506.18338761,0.00021917,3]
[348393133,1736501447858,-500.42112273,0.00021917,3]
[348393134,1736501447868,-502.43827412,0.00021917,3]
[348393135,1736501447878,-500.41953394,0.00021917,3]
[348393136,1736501447888,-519.18935587,0.00021917,3]
[348393137,1736501447898,-500.0,0.00021917,3]
[348393138,1736501447907,-500.0,0.00021917,3]
[348393139,1736501447917,-500.0,0.00021917,3]
[348393140,1736501447927,-565.1402764,0.00021917,3]
[348393141,1736501448019,-500.0,0.00021917,3]
[348393142,1736501448030,-500.0,0.00021917,3]
[348393143,1736501448040,-500.0,0.00021917,3]
[348393144,1736501448050,-500.0,0.00021917,3]
[348393145,1736501448060,-500.0,0.00021917,3]
[348393146,1736501448070,-500.0,0.00021917,3]
[348393147,1736501448079,-502.72867094,0.00021917,3]
[348393148,1736501448089,-500.96920365,0.00021917,3]
[348393149,1736501448098,-500.0,0.00021917,3]
[348393150,1736501448107,-500.0,0.00021917,3]
[348393151,1736501448116,-500.0,0.00021917,3]
[348393152,1736501448125,-500.73574786,0.00021917,3]
[348393153,1736501448135,-500.0,0.00021917,3]
[348393154,1736501448145,-500.0,0.00021917,3]
[348393155,1736501448155,-500.0,0.00021917,3]
[348393156,1736501448164,-500.0,0.00021917,3]
[348393157,1736501448174,-501.13377581,0.00021917,3]
[348393158,1736501448184,-501.30592075,0.00021917,3]
[348393159,1736501448198,-500.0,0.00021917,3]
[348393160,1736501448207,-500.0,0.00021917,3]
[348393161,1736501448217,-528.78417465,0.00021917,3]
[348393162,1736501448226,-500.0,0.00021917,3]
[348393163,1736501448235,-500.0,0.00021917,3]
[348393164,1736501448244,-501.21632372,0.00021917,3]
[348393165,1736501448254,-502.50950534,0.00021917,3]
[348393166,1736501448264,-500.76870103,0.00021917,3]
[348393167,1736501448273,-500.86893367,0.00021917,3]
[348393168,1736501448283,-500.96894965,0.00021917,3]
[348393169,1736501448292,-500.0,0.00021917,3]
[348393170,1736501448302,-503.76906847,0.00021917,3]
[348393171,1736501448312,-500.0,0.00021917,3]
[348393172,1736501448322,-500.0,0.00021917,3]
[348393173,1736501448331,-500.0,0.00021917,3]
[348393174,1736501448341,-502.92301924,0.00021917,3]
[348393175,1736501448350,-500.0,0.00021917,3]
[348393176,1736501448360,-500.0,0.00021917,3]
[348393177,1736501448372,-500.0,0.00021917,3]
[348393178,1736501448381,-500.0,0.00021917,3]
[348393179,1736501448390,-500.0,0.00021917,3]
[348393180,1736501448400,-501.04311846,0.00021917,3]
[348393181,1736501448409,-500.0,0.00021917,3]
[348393182,1736501448418,-500.0,0.00021917,3]
[348393183,1736501448427,-500.0,0.00021917,3]
[348393184,1736501448439,-500.0,0.00021917,3]
[348393185,1736501448448,-500.0,0.00021917,3]
[348393186,1736501448457,-501.07172046,0.00021917,3]
[348393187,1736501448467,-500.0,0.00021917,3]
[348393188,1736501448476,-500.0,0.00021917,3]
[348393189,1736501448486,-163.4517487,0.00021917,3]
[348393190,1736501448495,-500.0,0.00021917,3]
[348393191,1736501448505,-500.0,0.00021917,3]
[348393192,1736501448514,-501.11893354,0.00021917,3]
[348393193,1736501448524,-502.99764751,0.00021917,3]
[348393194,1736501448534,-500.0,0.00021917,3]
[348393195,1736501448543,-501.01114178,0.00021917,3]
[348393196,1736501448553,-500.0,0.00021917,3]
[348393197,1736501448562,-501.25919692,0.00021917,3]
[348393198,1736501448572,-502.01420837,0.00021917,3]
[348393199,1736501448582,-500.0,0.00021917,3]
[348393200,1736501448591,-500.0,0.00021917,3]
[348393201,1736501448601,-501.80816656,0.00021917,3]
[348393202,1736501448611,-501.89094023,0.00021917,3]
[348393203,1736501448621,-501.13495704,0.00021917,3]
[348393204,1736501448631,-500.0,0.00021917,3]
[348393205,1736501448642,-500.0,0.00021917,3]
[348393206,1736501448652,-500.0,0.00021917,3]
[348393207,1736501448662,-500.0,0.00021917,3]
[348393208,1736501448672,-500.0,0.00021917,3]
[348393209,1736501448682,-500.86404239,0.00021917,3]
[348393210,1736501448693,-560.4,0.00021917,3]
[348393211,1736501448703,-500.8116955,0.00021917,3]
[348393212,1736501448713,-500.0,0.00021917,3]
[348393213,1736501448724,-501.06907027,0.00021917,3]
[348393214,1736501448733,-157.178688,0.00021917,2]
[348393215,1736501448743,-500.0,0.00021917,3]
[348393216,1736501448752,-500.0,0.00021917,3]
[348393217,1736501448762,-502.28328072,0.00021917,3]
[348393218,1736501448772,-502.25951076,0.00021917,3]
[348393219,1736501448782,-504.33319995,0.00021917,3]
[348393220,1736501448794,-500.0,0.00021917,3]
[348393221,1736501448804,-633.22126372,0.00021917,3]
[348393222,1736501448813,-501.80471787,0.00021917,3]
[348393223,1736501448823,-500.0,0.00021917,3]
[348393224,1736501448833,-501.94008619,0.00021917,3]
[348393225,1736501448843,-500.0,0.00021917,3]
[348393226,1736501448852,-502.05547045,0.00021917,3]
[348393227,1736501448863,-502.16065508,0.00021917,3]
[348393228,1736501448872,-500.47780737,0.00021917,3]
[348393229,1736501448882,-500.0,0.00021917,3]
[348393230,1736501448891,-501.98817804,0.00021917,3]
[348393231,1736501448901,-511.67436084,0.00021917,3]
[348393232,1736501448911,-500.0,0.00021917,3]
[348393233,1736501448921,-500.0,0.00021917,3]
[348393234,1736501448931,-503.34159975,0.00021917,3]
[348393235,1736501448943,-501.76388671,0.00021917,3]
[348393236,1736501448953,-503.64926491,0.00021917,3]
[348393237,1736501448962,-501.22100255,0.00021917,3]
[348393238,1736501448971,-500.0,0.00021917,3]
[348393239,1736501448981,-500.0,0.00021917,3]
[348393240,1736501448991,-504.01080188,0.00021917,3]
[348393241,1736501449002,-505.02441029,0.00021917,3]
[348393242,1736501449011,-501.30399925,0.00021917,3]
[348393243,1736501449021,-500.0,0.00021917,3]
[348393244,1736501449030,-500.0,0.00021917,3]
[348393245,1736501449040,-500.0,0.00021917,3]
[348393246,1736501449049,-500.0,0.00021917,3]
[348393247,1736501449060,-500.0,0.00021917,3]
[348393248,1736501449070,-500.0,0.00021917,3]
[348393249,1736501449080,-500.0,0.00021917,3]
[348393250,1736501449089,-500.0,0.00021917,3]
[348393251,1736501449099,-501.93180345,0.00021917,3]
[348393252,1736501449110,-766.40427,0.00021917,2]
[348393253,1736501449119,-766.40427,0.00021917,2]
[348393254,1736501449129,-766.40427,0.00021917,2]
[348393255,1736501449139,-766.40427,0.00021917,2]
[348393256,1736501449150,-766.40427,0.00021917,2]
[348393257,1736501449160,-501.42120405,0.00021917,3]
[348393258,1736501449169,-766.40427,0.00021917,2]
[348393259,1736501449181,-766.40427,0.00021917,2]
[348393260,1736501449194,-766.40427,0.00021917,2]
[348393261,1736501449204,-766.40427,0.00021917,2]
[348393262,1736501449213,-737.30800093,0.00021917,2]
[348393263,1736501449319,-29.09626907,0.00021917,2]
[348393264,1736501449329,-297.22979174,0.00021917,2]
[348393265,1736501449342,-469.17447826,0.00021917,2]
[348393266,1736501449352,-766.40427,0.00021917,2]
[348393267,1736501449361,-766.40427,0.00021917,2]
[348393268,1736501449371,-766.40427,0.00021917,2]
[348393269,1736501449381,-766.40427,0.00021917,2]
[348393270,1736501449391,-501.86195945,0.00021917,3]
[348393271,1736501449400,-500.0,0.00021917,3]
[348393272,1736501449410,-766.40427,0.00021917,2]
[348393273,1736501449419,-766.40427,0.00021917,2]
[348393274,1736501449428,-505.51149338,0.00021917,3]
[348393275,1736501449440,-766.40427,0.00021917,2]
[348393276,1736501449450,-503.01520042,0.00021917,3]
[348393277,1736501449459,-79.09474514,0.00021917,2]
[348393278,1736501449496,-687.30952486,0.00021917,2]
[348393279,1736501449506,-766.404264,0.00021917,2]
[348393280,1736501449516,-569.31741425,0.00021917,3]
[348393281,1736501449526,-500.0,0.00021917,3]
[348393282,1736501449535,-500.0,0.00021917,3]
[348393283,1736501449545,-500.0,0.00021917,3]
[348393284,1736501449555,-505.94791832,0.00021917,3]
[348393285,1736501449564,-502.73648043,0.00021917,3]
[348393286,1736501449573,-502.1062413,0.00021917,3]
[348393287,1736501449582,-500.0,0.00021917,3]
[348393288,1736501449592,-500.0,0.00021917,3]
[348393289,1736501449602,-502.77521151,0.00021917,3]
[348393290,1736501449611,-498.59298073,0.00021917,3]
[348393291,1736501449622,-503.88531909,0.00021917,3]
[348393292,1736501449632,-500.0,0.00021917,3]
[348393293,1736501449642,-500.0,0.00021917,3]
[348393294,1736501449651,-501.15431888,0.00021917,3]
[348393295,1736501449660,-500.0,0.00021917,3]
[348393296,1736501449669,-502.66522777,0.00021917,3]
[348393297,1736501449679,-500.0,0.00021917,3]
[348393298,1736501449764,-500.0,0.00021917,3]
[348393299,1736501449774,-500.0,0.00021917,3]
[348393300,1736501449784,-581.13,0.00021917,3]
[348393301,1736501449794,-188.0,0.00021917,2]
[348393302,1736501449804,-500.0,0.00021917,3]
[348393303,1736501449813,-501.1154075,0.00021917,3]
[348393304,1736501449823,-500.0,0.00021917,3]
[348393305,1736501449833,-151.0,0.00021917,2]
[348393306,1736501449843,-151.0,0.00021917,2]
[348393307,1736501449853,-500.77920736,0.00021917,3]
[348393308,1736501449865,-251.091443,0.00021917,2]
[348393309,1736501449875,-500.0,0.00021917,3]
[348393310,1736501449884,-500.0,0.00021917,3]
[348393311,1736501449894,-504.74565424,0.00021917,3]
[348393312,1736501449903,-500.0,0.00021917,3]
[348393313,1736501449913,-500.0,0.00021917,3]
[348393314,1736501449922,-503.23251183,0.00021917,3]
[348393315,1736501449932,-501.15807486,0.00021917,3]
[348393316,1736501449944,-287.43343939,0.00021917,3]
[348393317,1736501449954,-500.0,0.00021917,3]
[348393318,1736501449963,-251.8857984,0.00021917,3]
[348393319,1736501449973,-500.0,0.00021917,3]
[348393320,1736501449982,-500.0,0.00021917,3]
[348393321,1736501449991,-502.28309935,0.00021917,3]
[348393322,1736501450001,-500.0,0.00021917,3]
[348393323,1736501450011,-501.9507629,0.00021917,3]
[348393324,1736501450020,-80.00302003,0.00021917,3]
[348393325,1736501450039,-419.99697997,0.00021917,3]
[348393326,1736501450048,-500.0,0.00021917,3]
[348393327,1736501450057,-500.0,0.00021917,3]
[348393328,1736501450066,-500.0,0.00021917,3]
[348393329,1736501450075,-500.0,0.00021917,3]
[348393330,1736501450085,-500.0,0.00021917,3]
[348393331,1736501450095,-504.9529924,0.00021917,3]
[348393332,1736501450105,-500.0,0.00021917,3]
[348393333,1736501450114,-505.3725327,0.00021917,3]
[348393334,1736501450123,-500.0,0.00021917,3]
[348393335,1736501450133,-1849.71,0.00021917,3]
[348393336,1736501450143,-502.95344657,0.00021917,3]
[348393337,1736501450153,-523.00314506,0.00021917,3]
[348393338,1736501450163,-500.0,0.00021917,3]
[348393339,1736501450172,-500.0,0.00021917,3]
[348393340,1736501450182,-500.0,0.00021917,3]
[348393341,1736501450193,-500.0,0.00021917,2]
[348393342,1736501450202,-500.0,0.00021917,2]
[348393343,1736501450212,-500.0,0.00021917,3]
[348393344,1736501450222,-500.0,0.00021917,3]
[348393345,1736501450231,-500.0,0.00021917,3]
[348393346,1736501450241,-278.87497597,0.00021917,3]
[348393347,1736501584977,204.225104,0.00013973,2]
[348393349,1736502436173,-158.75196723,0.00017882,2]
[348393350,1736502436197,-158.75196723,0.00018063,2]
[348393351,1736502436221,-163.1487064,0.00019817,2]
[348393352,1736502440210,-428.24409085,0.00019817,2]
[348393353,1736502440234,-162.395768,0.00020159,2]
[348393354,1736502440255,-113.84222654,0.00020292,2]
[348393355,1736502444126,-428.24409085,0.00019619,2]
[348393356,1736502444151,-108.54728656,0.00020292,2]
[348393357,1736502444174,-48.97948571,0.00020447,2]
[348393358,1736502445118,-155.24561829,0.00020447,2]
[348393359,1736502445142,-1196.9,0.00020497,2]
[348393360,1736502445167,-461.19,0.00020536,2]
[348393361,1736502445188,-3327.680465,0.00020745,2]
[348393362,1736502445211,-341.25447188,0.0002082,2]
[348393363,1736502445328,-382.31352812,0.0002082,2]
[348393364,1736502445351,-153.0,0.00020878,2]
[348393365,1736502445372,-153.0,0.00021178,2]
[348393366,1736502445392,-151.0,0.000216,2]
[348393367,1736502445413,-152.6501551,0.00021697,2]
[348393368,1736502445434,-694.92185714,0.00021807,6]
[348393369,1736502445456,-165.95564592,0.00021817,2]
[348393370,1736502445477,-300.0,0.00021915,2]
[348393371,1736502445507,-167.06220794,0.00021916,2]
[348393372,1736502445529,-265.0,0.00021916,2]
[348393373,1736502445553,-417.25607097,0.00021916,2]
[348393374,1736502449101,-730.50977858,0.00021697,2]
[348393375,1736502535559,191.707338,0.00013973,2]
[348393483,1736502643599,-394.26186483,0.00019421,2]
[348393487,1736502643608,-126.56208676,0.00019617,2]
[348393809,1736502646741,-78.27578727,0.00019617,2]
[348393864,1736502656563,-189.4239908,0.00019617,2]
[348393865,1736502656589,-394.26186483,0.00019815,2]
[348393866,1736502665619,5000.0,0.0002,2]
[348393867,1736502673177,473.15471914,0.00019715,2]
[348393868,1736502681300,5000.0,0.0002,2]
[348393869,1736502696846,5000.0,0.0002,2]
[348393870,1736502711905,3720.80036753,0.0002,2]
[348393873,1736502850122,5000.0,0.0002,2]
[348393874,1736502860964,262.84124322,0.000189,2]
[348393876,1736503048553,5000.0,0.0002,2]
[348393877,1736503162241,327.34866169,0.000189,2]
[348393878,1736503215807,302.9394212,0.000199,2]
[348393879,1736503255956,5000.0,0.0002,2]
[348393880,1736503271411,5000.0,0.0002,2]
[348393881,1736503288560,5000.0,0.0002,2]
[348393882,1736503304398,5000.0,0.0002,2]
[348393883,1736503319740,5000.0,0.0002,2]
[348393884,1736503335690,5000.0,0.0002,2]
[348393885,1736503351365,2210.03036887,0.0002,2]
[348393886,1736503435300,190.123535,0.00013973,2]
[348393887,1736503463886,218.23244112,0.000189,2]
[348393888,1736503505828,613.78989919,0.0002,2]
[348393889,1736503514306,343.982639,0.0002,2]
[348393890,1736503625206,-288.25873421,0.00020043,2]
[348393891,1736503625229,-196.54497394,0.00020143,2]
[348393892,1736503625251,-190.123535,0.00020447,2]
[348393893,1736503625272,-70.74228156,0.00020595,2]
[348393894,1736503626118,-94.40006444,0.00020595,2]
[348393895,1736503626142,-693.486,0.0002082,2]
[348393896,1736503626164,-359.199468,0.00020869,2]
[348393897,1736503626185,-4261.0,0.00020949,2]
[348393898,1736503626207,-153.0,0.00021278,2]
[348393899,1736503626228,-85.69545304,0.00021573,2]
[348393900,1736503644126,-153.47,0.00021679,2]
[348393901,1736503644147,-146.74594652,0.00021697,2]
[348393902,1736503648126,-5.90420858,0.00021697,2]
[348393903,1736503648151,-198.71803161,0.00021809,2]
[348393904,1736503648172,-185.43329444,0.00021817,2]
[348393905,1736503648192,-207.35,0.00021832,2]
[348393906,1736503648214,-300.0,0.00021906,2]
[348393907,1736503648234,-346.81703373,0.00021906,2]
[348393909,1736503765374,150.0,0.000189,2]
[348393910,1736503810509,85603.07084841,0.0002,5]
[348394291,1736503840724,-5713.05220655,0.0002,5]
[348394293,1736503840736,-1721.6296,0.0002,5]
[348394295,1736503840749,-7189.91886584,0.0002,5]
[348394297,1736503840758,-267.3461749,0.00020908,2]
[348394299,1736503840767,-2897.73495926,0.00020916,2]
[348394301,1736503840779,-86.13566364,0.00020916,2]
[348394303,1736503840788,-173.87827765,0.00021807,2]
[348394305,1736503840797,-500.0,0.00021905,2]
[348394307,1736503840807,-587.02803304,0.00021905,2]
[348394309,1736503840816,-500.0,0.00021905,2]
[348394311,1736503840825,-500.0,0.00021905,2]
[348394313,1736503840835,-500.0,0.00021905,2]
[348394315,1736503840845,-502.00270446,0.00021905,2]
[348394318,1736503840855,-500.0,0.00021905,2]
[348394321,1736503840865,-500.0,0.00021905,2]
[348394323,1736503840874,-500.0,0.00021905,2]
[348394325,1736503840884,-500.0,0.00021905,2]
[348394327,1736503840893,-369.67935932,0.00021905,2]
[348394329,1736503840902,-500.0,0.00021905,2]
[348394331,1736503840912,-500.0,0.00021905,2]
[348394333,1736503840922,-500.0,0.00021905,2]
[348394335,1736503840931,-500.0,0.00021905,2]
[348394337,1736503840940,-500.0,0.00021905,2]
[348394339,1736503840949,-500.0,0.00021905,2]
[348394341,1736503840959,-500.0,0.00021905,2]
[348394343,1736503840968,-500.0,0.00021905,2]
[348394345,1736503840977,-500.0,0.00021905,2]
[348394347,1736503840986,-500.0,0.00021905,2]
[348394349,1736503840996,-500.0,0.00021905,2]
[348394351,1736503841006,-500.0,0.00021905,2]
[348394353,1736503841015,-500.0,0.00021905,2]
[348394355,1736503841024,-500.0,0.00021905,2]
[348394357,1736503841034,-500.0,0.00021905,2]
[348394359,1736503841044,-500.0,0.00021905,2]
[348394361,1736503841054,-500.0,0.00021905,2]
[348394364,1736503841064,-500.0,0.00021905,2]
[348394366,1736503841073,-500.0,0.00021905,2]
[348394368,1736503841083,-500.0,0.00021905,2]
[348394370,1736503841092,-500.0,0.00021905,2]
[348394372,1736503841101,-500.0,0.00021905,2]
[348394374,1736503841111,-500.0,0.00021905,2]
[348394376,1736503841120,-500.0,0.00021905,2]
[348394378,1736503841129,-284.1293292,0.00021905,2]
[348394380,1736503841138,-413.7254467,0.00021905,2]
[348394382,1736503841147,-500.0,0.00021905,2]
[348394384,1736503841158,-500.0,0.00021905,2]
[348394386,1736503841167,-500.0,0.00021905,2]
[348394388,1736503841178,-500.0,0.00021905,2]
[348394390,1736503841190,-590.32545783,0.00021905,2]
[348394392,1736503841199,-500.0,0.00021905,2]
[348394394,1736503841209,-500.0,0.00021905,2]
[348394396,1736503841219,-500.0,0.00021905,2]
[348394398,1736503841229,-500.0,0.00021905,2]
[348394400,1736503841240,-500.0,0.00021905,2]
[348394403,1736503841251,-500.0,0.00021905,2]
[348394405,1736503841260,-500.0,0.00021905,2]
[348394407,1736503841271,-500.0,0.00021905,2]
[348394409,1736503841281,-500.0,0.00021905,2]
[348394411,1736503841292,-500.0,0.00021905,2]
[348394413,1736503841302,-500.0,0.00021905,2]
[348394415,1736503841312,-500.0,0.00021905,2]
[348394417,1736503841322,-500.0,0.00021905,2]
[348394419,1736503841332,-500.0,0.00021905,2]
[348394421,1736503841341,-500.0,0.00021905,2]
[348394423,1736503841351,-500.0,0.00021905,2]
[348394425,1736503841360,-500.0,0.00021905,2]
[348394427,1736503841370,-500.0,0.00021905,2]
[348394429,1736503841379,-500.0,0.00021905,2]
[348394431,1736503841389,-500.0,0.00021905,2]
[348394433,1736503841399,-500.0,0.00021905,2]
[348394435,1736503841408,-500.0,0.00021905,2]
[348394437,1736503841418,-500.0,0.00021905,2]
[348394439,1736503841427,-500.0,0.00021905,2]
[348394441,1736503841436,-500.0,0.00021905,2]
[348394443,1736503841445,-500.0,0.00021905,2]
[348394445,1736503841454,-500.0,0.00021905,2]
[348394447,1736503841464,-500.0,0.00021905,2]
[348394449,1736503841473,-297.69842975,0.00021905,2]
[348394451,1736503841482,-500.0,0.00021905,2]
[348394453,1736503841491,-500.0,0.00021905,2]
[348394455,1736503841500,-500.0,0.00021905,2]
[348394457,1736503841509,-500.0,0.00021905,2]
[348394459,1736503841517,-500.0,0.00021905,2]
[348394461,1736503841527,-500.0,0.00021905,2]
[348394463,1736503841536,-519.13184008,0.00021905,2]
[348394465,1736503841545,-500.0,0.00021905,2]
[348394467,1736503841554,-500.0,0.00021905,2]
[348394469,1736503841563,-500.0,0.00021905,2]
[348394471,1736503841572,-500.0,0.00021905,2]
[348394473,1736503841582,-500.0,0.00021905,2]
[348394475,1736503841591,-500.0,0.00021905,2]
[348394477,1736503841600,-500.0,0.00021905,2]